fUST/lending_fUST_20250124
["ID","MTS","AMOUNT","RATE_DAILY","PERIOD"]
[350214838,1737696654171,-500.0,0.00020544,3]
[350214839,1737696654180,-500.0,0.00020544,3]
[350214840,1737696654189,-500.0,0.00020544,3]
[350214841,1737696654198,-242.59725368,0.00020544,3]
[350214842,1737696654208,-500.0,0.00020544,3]
[350214843,1737696654218,-500.0,0.00020544,3]
[350214844,1737696654227,-500.0,0.00020544,3]
[350214845,1737696654236,-500.0,0.00020544,3]
[350214846,1737696654245,-500.0,0.00020544,3]
[350214847,1737696654319,-500.0,0.00020544,3]
[350214848,1737696654328,-500.0,0.00020544,3]
[350214849,1737696654337,-500.0,0.00020544,3]
[350214850,1737696654346,-500.0,0.00020544,3]
[350214851,1737696654356,-500.0,0.00020544,3]
[350214852,1737696654366,-191.928982,0.00020544,3]
[350214853,1737696654375,-199.09896474,0.00020544,3]
[350214854,1737696654384,-500.0,0.00020544,3]
[350214855,1737696654393,-500.0,0.00020544,3]
[350214856,1737696654402,-500.0,0.00020544,3]
[350214857,1737696654411,-500.0,0.00020544,3]
[350214858,1737696654420,-500.0,0.00020544,3]
[350214859,1737696654429,-500.0,0.00020544,3]
[350214860,1737696654438,-500.0,0.00020544,3]
[350214861,1737696654447,-500.0,0.00020544,3]
[350214862,1737696654456,-500.0,0.00020544,3]
[350214863,1737696654466,-500.0,0.00020544,3]
[350214864,1737696654475,-500.0,0.00020544,3]
[350214865,1737696654485,-500.0,0.00020545,3]
[350214866,1737696654493,-500.0,0.00020545,3]
[350214867,1737696654503,-500.0,0.00020545,3]
[350214868,1737696654513,-500.0,0.00020545,3]
[350214869,1737696654528,-500.0,0.00020545,3]
[350214870,1737696654540,-500.0,0.00020545,3]
[350214871,1737696654551,-500.0,0.00020545,3]
[350214872,1737696654560,-500.0,0.00020545,3]
[350214873,1737696654570,-500.0,0.00020545,3]
[350214874,1737696654579,-500.0,0.00020545,3]
[350214875,1737696654588,-553.17055382,0.00020545,3]
[350214876,1737696654597,-259.84897959,0.00020545,3]
[350214877,1737696654606,-648.24938065,0.00020545,3]
[350214878,1737696654615,-1200.03,0.00020584,3]
[350214879,1737696654624,-500.0,0.00020584,3]
[350214880,1737696654634,-500.0,0.00020584,3]
[350214881,1737696654643,-500.0,0.00020584,3]
[350214882,1737696654652,-500.0,0.00020679,3]
[350214883,1737696654662,-1425.27,0.00020679,3]
[350214884,1737696654671,-500.0,0.00020679,3]
[350214885,1737696654680,-500.0,0.00020679,3]
[350214886,1737696654689,-500.0,0.00020679,3]
[350214887,1737696654700,-500.0,0.00020679,3]
[350214888,1737696654708,-2140.23,0.00020679,3]
[350214889,1737696654717,-956.22,0.00020679,3]
[350214890,1737696654727,-562.0,0.00020679,3]
[350214891,1737696654736,-620.72,0.00020679,3]
[350214892,1737696654744,-1228.47,0.00020679,3]
[350214893,1737696654753,-500.0,0.00020679,3]
[350214894,1737696654764,-500.0,0.00020679,3]
[350214895,1737696654773,-500.0,0.00020679,3]
[350214896,1737696654783,-500.0,0.00020679,3]
[350214897,1737696654792,-500.0,0.00020679,3]
[350214898,1737696654801,-759.03,0.00020679,3]
[350214899,1737696654810,-637.22,0.00020679,3]
[350214900,1737696654820,-500.0,0.00020679,3]
[350214901,1737696654830,-500.0,0.00020679,3]
[350214902,1737696654839,-500.0,0.00020679,3]
[350214903,1737696654849,-1061.97,0.00020679,3]
[350214904,1737696654858,-1873.1,0.00020679,3]
[350214905,1737696654868,-500.0,0.00020679,3]
[350214906,1737696654878,-500.0,0.00020679,3]
[350214907,1737696654887,-500.0,0.00020679,3]
[350214908,1737696654897,-500.0,0.00020679,3]
[350214909,1737696654907,-500.0,0.00020679,3]
[350214910,1737696654916,-500.0,0.00020679,3]
[350214911,1737696654925,-800.88,0.00020679,3]
[350214912,1737696654934,-1876.67,0.00020679,3]
[350214913,1737696654943,-531.5,0.00020679,3]
[350214914,1737696654953,-500.0,0.0002068,3]
[350214915,1737696654966,-500.0,0.0002068,3]
[350214916,1737696654975,-500.0,0.0002068,3]
[350214917,1737696654985,-500.0,0.0002068,3]
[350214918,1737696654995,-1556.76,0.0002068,3]
[350214919,1737696655004,-500.0,0.0002068,3]
[350214920,1737696655013,-500.0,0.0002068,3]
[350214921,1737696655022,-500.0,0.0002068,3]
[350214922,1737696655032,-500.0,0.0002068,3]
[350214923,1737696655041,-500.0,0.0002068,3]
[350214924,1737696655051,-500.0,0.0002068,3]
[350214925,1737696655060,-342.0515566,0.0002068,3]
[350214926,1737696655071,-500.0,0.0002068,3]
[350214927,1737696655081,-500.0,0.0002068,3]
[350214928,1737696655090,-500.0,0.0002068,3]
[350214929,1737696655100,-500.0,0.0002068,3]
[350214930,1737696655109,-500.0,0.0002068,3]
[350214931,1737696655118,-500.0,0.0002068,3]
[350214932,1737696655127,-500.0,0.0002068,3]
[350214933,1737696655137,-500.0,0.0002068,3]
[350214934,1737696655147,-500.0,0.0002068,3]
[350214935,1737696655157,-500.0,0.0002068,3]
[350214936,1737696655167,-500.0,0.0002068,3]
[350214937,1737696655176,-500.0,0.0002068,3]
[350214938,1737696655186,-500.0,0.0002068,3]
[350214939,1737696655197,-500.0,0.0002068,3]
[350214940,1737696655207,-500.0,0.0002068,3]
[350214941,1737696655216,-500.0,0.0002068,2]
[350214942,1737696655226,-500.0,0.0002068,3]
[350214943,1737696655235,-500.0,0.0002068,3]
[350214944,1737696655245,-500.0,0.0002068,3]
[350214945,1737696655255,-500.0,0.0002068,3]
[350214946,1737696655264,-500.0,0.0002068,3]
[350214947,1737696655274,-500.0,0.0002068,3]
[350214948,1737696655283,-500.0,0.0002068,3]
[350214949,1737696655293,-500.0,0.0002068,3]
[350214950,1737696655302,-500.0,0.0002068,3]
[350214951,1737696655312,-500.0,0.0002068,3]
[350214952,1737696655321,-644.83,0.0002068,3]
[350214953,1737696655331,-500.0,0.0002068,3]
[350214954,1737696655341,-500.0,0.0002068,3]
[350214955,1737696655350,-500.0,0.0002068,3]
[350214956,1737696655360,-500.0,0.0002068,3]
[350214957,1737696655369,-9109.92,0.0002068,3]
[350214958,1737696655379,-502.63453495,0.0002068,3]
[350214959,1737696655388,-500.0,0.0002068,3]
[350214960,1737696655398,-500.0,0.0002068,3]
[350214961,1737696655407,-500.0,0.0002068,3]
[350214962,1737696655416,-500.0,0.0002068,3]
[350214963,1737696655425,-500.0,0.0002068,3]
[350214964,1737696655435,-500.0,0.0002068,3]
[350214965,1737696655444,-500.0,0.0002068,3]
[350214966,1737696655453,-500.0,0.0002068,3]
[350214967,1737696655463,-500.0,0.0002068,3]
[350214968,1737696655472,-395.31835985,0.0002068,3]
[350214969,1737696655481,-691.98,0.0002068,3]
[350214970,1737696655492,-500.0,0.0002068,3]
[350214971,1737696655501,-500.0,0.0002068,3]
[350214972,1737696655510,-500.0,0.0002068,3]
[350214973,1737696655519,-500.0,0.0002068,3]
[350214974,1737696655529,-9911.72,0.0002068,3]
[350214975,1737696655538,-2566.52,0.0002068,3]
[350214976,1737696655547,-500.0,0.0002068,3]
[350214977,1737696655557,-500.0,0.0002068,3]
[350214978,1737696655566,-500.0,0.0002068,3]
[350214979,1737696655576,-500.0,0.0002068,3]
[350214980,1737696655648,-500.0,0.0002068,3]
[350214981,1737696655657,-500.0,0.00020681,3]
[350214982,1737696655667,-500.0,0.00020681,3]
[350214983,1737696655675,-504.13960063,0.00020681,3]
[350214984,1737696655685,-500.0,0.00020681,3]
[350214985,1737696655695,-500.0,0.00020681,3]
[350214986,1737696655705,-500.0,0.00020681,3]
[350214987,1737696655714,-500.0,0.00020681,3]
[350214988,1737696655724,-500.0,0.00020681,3]
[350214989,1737696655734,-223.0,0.00020681,3]
[350214990,1737696655743,-500.0,0.00020681,3]
[350214991,1737696655754,-407.95,0.00020681,3]
[350214992,1737696655763,-500.0,0.00020681,3]
[350214993,1737696655772,-500.0,0.00020681,3]
[350214994,1737696655781,-348.49836911,0.00020681,3]
[350214995,1737696655791,-500.0,0.00020681,3]
[350214996,1737696655800,-500.0,0.00020681,3]
[350214997,1737696655810,-500.0,0.00020681,3]
[350214998,1737696655821,-500.0,0.00020681,3]
[350214999,1737696655830,-500.0,0.00020681,3]
[350215000,1737696655839,-500.0,0.00020681,3]
[350215001,1737696655849,-500.0,0.00020681,3]
[350215002,1737696655858,-500.0,0.00020681,3]
[350215003,1737696655867,-500.0,0.00020681,3]
[350215004,1737696655876,-500.0,0.00020681,3]
[350215005,1737696655886,-4162.13,0.00020681,3]
[350215006,1737696655895,-500.0,0.00020681,3]
[350215007,1737696655904,-500.0,0.00020681,3]
[350215008,1737696655913,-500.0,0.00020681,3]
[350215009,1737696655922,-500.0,0.00020681,3]
[350215010,1737696655932,-500.0,0.00020681,3]
[350215011,1737696655942,-500.0,0.00020681,3]
[350215012,1737696655952,-500.0,0.00020681,3]
[350215013,1737696655962,-500.0,0.00020681,3]
[350215014,1737696655973,-500.0,0.00020681,3]
[350215015,1737696655983,-500.0,0.00020681,3]
[350215016,1737696655992,-281.3465763,0.00020681,3]
[350215017,1737696656002,-500.0,0.00020681,3]
[350215018,1737696656012,-500.0,0.00020681,3]
[350215019,1737696656022,-500.0,0.00020681,3]
[350215020,1737696656032,-500.0,0.00020681,3]
[350215021,1737696656041,-502.26378831,0.00020681,3]
[350215022,1737696656052,-500.0,0.00020681,3]
[350215023,1737696656062,-500.0,0.00020681,3]
[350215024,1737696656071,-500.0,0.00020681,3]
[350215025,1737696656080,-500.0,0.00020681,3]
[350215026,1737696656090,-500.0,0.00020681,3]
[350215027,1737696656099,-500.0,0.00020681,3]
[350215028,1737696656108,-500.0,0.00020681,3]
[350215029,1737696656117,-504.86,0.00020681,3]
[350215030,1737696656127,-500.0,0.00020681,3]
[350215031,1737696656136,-500.0,0.00020682,3]
[350215032,1737696656146,-500.0,0.00020682,3]
[350215033,1737696656155,-500.0,0.00020682,3]
[350215034,1737696656165,-500.0,0.00020682,3]
[350215035,1737696656174,-500.0,0.00020682,3]
[350215036,1737696656184,-500.0,0.00020682,3]
[350215037,1737696656194,-500.0,0.00020682,3]
[350215038,1737696656205,-500.0,0.00020682,3]
[350215039,1737696656215,-500.0,0.00020682,3]
[350215040,1737696656225,-500.0,0.00020682,3]
[350215041,1737696656235,-420.0,0.00020707,2]
[350215042,1737696656244,-1200.03,0.00020721,3]
[350215043,1737696656253,-500.0,0.00020721,3]
[350215044,1737696656263,-500.0,0.00020721,3]
[350215045,1737696656273,-1425.27,0.00020816,3]
[350215046,1737696656282,-500.0,0.00020816,3]
[350215047,1737696656291,-500.0,0.00020816,3]
[350215048,1737696656300,-407.16,0.00020816,3]
[350215049,1737696656310,-2140.23,0.00020816,3]
[350215050,1737696656320,-956.22,0.00020816,3]
[350215051,1737696656329,-562.0,0.00020816,3]
[350215052,1737696656338,-1228.47,0.00020816,3]
[350215053,1737696656347,-500.0,0.00020816,3]
[350215054,1737696656356,-500.0,0.00020816,3]
[350215055,1737696656366,-500.0,0.00020816,3]
[350215056,1737696656376,-759.03,0.00020816,3]
[350215057,1737696656386,-500.0,0.00020816,3]
[350215058,1737696656395,-500.0,0.00020816,3]
[350215059,1737696656404,-500.0,0.00020816,3]
[350215060,1737696656413,-1061.97,0.00020816,3]
[350215061,1737696656423,-1873.1,0.00020816,3]
[350215062,1737696656432,-500.0,0.00020816,3]
[350215063,1737696656442,-500.0,0.00020816,3]
[350215064,1737696656453,-500.0,0.00020816,3]
[350215065,1737696656462,-800.88,0.00020816,3]
[350215066,1737696656471,-1876.67,0.00020816,3]
[350215067,1737696656481,-531.5,0.00020816,3]
[350215068,1737696656490,-500.0,0.00020817,3]
[350215069,1737696656499,-500.0,0.00020817,3]
[350215070,1737696656508,-500.0,0.00020817,3]
[350215071,1737696656517,-1556.76,0.00020817,3]
[350215072,1737696656526,-500.0,0.00020817,3]
[350215073,1737696656535,-500.0,0.00020817,3]
[350215074,1737696656545,-500.0,0.00020817,3]
[350215075,1737696656554,-500.0,0.00020817,3]
[350215076,1737696656563,-500.0,0.00020817,3]
[350215077,1737696656573,-500.0,0.00020817,3]
[350215078,1737696656582,-500.0,0.00020817,3]
[350215079,1737696656592,-500.0,0.00020817,3]
[350215080,1737696656601,-500.0,0.00020817,3]
[350215081,1737696656611,-500.0,0.00020817,3]
[350215082,1737696656621,-500.0,0.00020817,3]
[350215083,1737696656630,-562.37,0.00020817,3]
[350215084,1737696656639,-500.0,0.00020817,3]
[350215085,1737696656648,-500.0,0.00020817,3]
[350215086,1737696656658,-500.0,0.00020817,3]
[350215087,1737696656667,-500.0,0.00020817,3]
[350215088,1737696656676,-500.0,0.00020817,3]
[350215089,1737696656685,-500.0,0.00020817,3]
[350215090,1737696656694,-373.88691648,0.00020817,3]
[350215091,1737696656705,-500.0,0.00020817,3]
[350215092,1737696656714,-500.0,0.00020817,2]
[350215093,1737696656723,-500.0,0.00020817,3]
[350215094,1737696656733,-581.29069021,0.00020817,3]
[350215095,1737696656742,-500.0,0.00020817,3]
[350215096,1737696656752,-500.0,0.00020817,3]
[350215097,1737696656761,-500.0,0.00020817,3]
[350215098,1737696656770,-500.0,0.00020817,3]
[350215099,1737696656779,-500.0,0.00020817,3]
[350215100,1737696656788,-500.0,0.00020817,3]
[350215101,1737696656798,-644.83,0.00020817,3]
[350215102,1737696656807,-500.0,0.00020817,3]
[350215103,1737696656875,-376.77897941,0.00020817,3]
[350215104,1737696656885,-500.0,0.00020817,3]
[350215105,1737696656894,-9109.92,0.00020817,3]
[350215106,1737696656904,-500.0,0.00020817,3]
[350215107,1737696656913,-500.0,0.00020817,3]
[350215108,1737696656923,-500.0,0.00020817,3]
[350215109,1737696656932,-500.0,0.00020817,3]
[350215110,1737696656942,-500.0,0.00020817,3]
[350215111,1737696656954,-500.0,0.00020817,3]
[350215112,1737696656965,-691.98,0.00020817,3]
[350215113,1737696656984,-501.0,0.00020817,3]
[350215114,1737696657009,-500.0,0.00020817,3]
[350215115,1737696657030,-500.0,0.00020817,3]
[350215116,1737696657052,-9911.72,0.00020817,3]
[350215117,1737696657073,-2566.52,0.00020817,3]
[350215118,1737696657094,-500.0,0.00020817,3]
[350215119,1737696657118,-500.0,0.00020817,3]
[350215120,1737696657143,-500.0,0.00020817,3]
[350215121,1737696657168,-392.939008,0.00020818,3]
[350215122,1737696657192,-500.0,0.00020818,3]
[350215123,1737696657223,-613.26,0.00020818,3]
[350215124,1737696657244,-500.0,0.00020818,3]
[350215125,1737696657254,-500.0,0.00020818,3]
[350215126,1737696657264,-272.9,0.00020818,3]
[350215127,1737696657273,-501.6713087,0.00020818,3]
[350215128,1737696657282,-500.0,0.00020818,3]
[350215129,1737696657292,-500.0,0.00020818,3]
[350215130,1737696657301,-502.26883678,0.00020818,3]
[350215131,1737696657311,-563.85,0.00020818,3]
[350215132,1737696657320,-500.0,0.00020818,3]
[350215133,1737696657330,-4162.13,0.00020818,3]
[350215134,1737696657339,-500.0,0.00020818,3]
[350215135,1737696657348,-500.0,0.00020818,3]
[350215136,1737696657357,-500.0,0.00020818,3]
[350215137,1737696657366,-500.0,0.00020818,3]
[350215138,1737696657375,-500.0,0.00020818,3]
[350215139,1737696657385,-500.0,0.00020818,3]
[350215140,1737696657394,-500.0,0.00020818,3]
[350215141,1737696657403,-500.0,0.00020819,3]
[350215142,1737696657412,-500.0,0.00020819,3]
[350215143,1737696657421,-500.0,0.00020819,3]
[350215144,1737696657430,-292.68,0.00020819,3]
[350215145,1737696657440,-500.0,0.00020819,3]
[350215146,1737696657449,-500.0,0.00020819,3]
[350215147,1737696657460,-1200.03,0.00020858,3]
[350215148,1737696657469,-500.0,0.00020858,3]
[350215149,1737696657479,-440.35,0.00020858,3]
[350215150,1737696657488,-3433.92,0.000209,2]
[350215151,1737696657498,-6521.85,0.000209,2]
[350215152,1737696657508,-1425.27,0.00020953,3]
[350215153,1737696657518,-500.0,0.00020953,3]
[350215154,1737696657527,-500.0,0.00020953,3]
[350215155,1737696657536,-2140.23,0.00020953,3]
[350215156,1737696657546,-956.22,0.00020953,3]
[350215157,1737696657554,-562.0,0.00020953,3]
[350215158,1737696657564,-1228.47,0.00020953,3]
[350215159,1737696657573,-500.0,0.00020953,3]
[350215160,1737696657582,-500.0,0.00020953,3]
[350215161,1737696657591,-500.0,0.00020953,3]
[350215162,1737696657600,-759.03,0.00020953,3]
[350215163,1737696657609,-500.0,0.00020953,3]
[350215164,1737696657618,-500.0,0.00020953,3]
[350215165,1737696657627,-500.0,0.00020953,3]
[350215166,1737696657636,-1061.97,0.00020953,3]
[350215167,1737696657645,-1873.1,0.00020953,3]
[350215168,1737696657654,-500.0,0.00020953,3]
[350215169,1737696657663,-500.0,0.00020953,3]
[350215170,1737696657672,-800.88,0.00020953,3]
[350215171,1737696657681,-1876.67,0.00020953,3]
[350215172,1737696657690,-531.5,0.00020953,3]
[350215173,1737696657699,-500.0,0.00020954,3]
[350215174,1737696657709,-500.0,0.00020954,3]
[350215175,1737696657718,-1556.76,0.00020954,3]
[350215176,1737696657727,-500.0,0.00020954,3]
[350215177,1737696657736,-500.0,0.00020954,3]
[350215178,1737696657745,-500.0,0.00020954,3]
[350215179,1737696657755,-500.0,0.00020954,3]
[350215180,1737696657764,-500.0,0.00020954,3]
[350215181,1737696657773,-500.0,0.00020954,3]
[350215182,1737696657782,-500.0,0.00020954,3]
[350215183,1737696657792,-235.62,0.00020954,3]
[350215184,1737696657801,-500.0,0.00020954,3]
[350215185,1737696657810,-500.0,0.00020954,3]
[350215186,1737696657819,-500.0,0.00020954,2]
[350215187,1737696657828,-500.0,0.00020954,3]
[350215188,1737696657837,-500.0,0.00020954,3]
[350215189,1737696657846,-588.6,0.00020954,3]
[350215190,1737696657855,-644.83,0.00020954,3]
[350215191,1737696657864,-9109.92,0.00020954,3]
[350215192,1737696657874,-500.0,0.00020954,3]
[350215193,1737696657883,-500.0,0.00020954,3]
[350215194,1737696657893,-500.0,0.00020954,3]
[350215195,1737696657902,-500.0,0.00020954,3]
[350215196,1737696657911,-500.0,0.00020954,3]
[350215197,1737696657919,-500.0,0.00020954,3]
[350215198,1737696657929,-691.98,0.00020954,3]
[350215199,1737696657938,-500.0,0.00020954,3]
[350215200,1737696657947,-500.0,0.00020954,3]
[350215201,1737696657958,-9911.72,0.00020954,3]
[350215202,1737696657969,-2566.52,0.00020954,3]
[350215203,1737696657978,-500.0,0.00020954,3]
[350215204,1737696657988,-500.0,0.00020954,3]
[350215205,1737696657999,-500.0,0.00020954,3]
[350215206,1737696658008,-500.0,0.00020955,3]
[350215207,1737696658017,-500.0,0.00020955,3]
[350215208,1737696658026,-500.0,0.00020955,3]
[350215209,1737696658036,-500.0,0.00020955,3]
[350215210,1737696658047,-500.0,0.00020955,3]
[350215211,1737696658056,-4162.13,0.00020955,3]
[350215212,1737696658065,-500.0,0.00020955,3]
[350215213,1737696658074,-500.0,0.00020955,3]
[350215214,1737696658083,-500.0,0.00020955,3]
[350215215,1737696658147,-249.1,0.00020955,3]
[350215216,1737696658157,-500.0,0.00020955,3]
[350215217,1737696658166,-588.58,0.00020955,3]
[350215218,1737696658175,-500.0,0.00020956,3]
[350215219,1737696658184,-500.0,0.00020956,3]
[350215220,1737696658193,-500.0,0.00020956,3]
[350215221,1737696658205,-500.0,0.00020956,3]
[350215222,1737696658214,-500.0,0.00020956,3]
[350215223,1737696658223,-1200.03,0.00020995,3]
[350215224,1737696658232,-500.0,0.00020995,3]
[350215225,1737696658241,-563.70395069,0.00021013,2]
[350215226,1737696658251,-213.19183091,0.00021043,2]
[350215227,1737696658261,-1425.27,0.0002109,3]
[350215228,1737696658270,-311.42,0.0002109,3]
[350215229,1737696658280,-500.0,0.0002109,3]
[350215230,1737696658289,-2140.23,0.0002109,3]
[350215231,1737696658299,-956.22,0.0002109,3]
[350215232,1737696658308,-562.0,0.0002109,3]
[350215233,1737696658318,-1228.47,0.0002109,3]
[350215234,1737696658327,-500.0,0.0002109,3]
[350215235,1737696658337,-500.0,0.0002109,3]
[350215236,1737696658346,-500.0,0.0002109,3]
[350215237,1737696658356,-759.03,0.0002109,3]
[350215238,1737696658365,-500.0,0.0002109,3]
[350215239,1737696658375,-500.0,0.0002109,3]
[350215240,1737696658384,-500.0,0.0002109,3]
[350215241,1737696658393,-1061.97,0.0002109,3]
[350215242,1737696658402,-1873.1,0.0002109,3]
[350215243,1737696658412,-500.0,0.0002109,3]
[350215244,1737696658421,-500.0,0.0002109,3]
[350215245,1737696658430,-800.88,0.0002109,3]
[350215246,1737696658439,-1876.67,0.0002109,3]
[350215247,1737696658449,-531.5,0.0002109,3]
[350215248,1737696658460,-500.0,0.00021091,3]
[350215249,1737696658469,-500.0,0.00021091,3]
[350215250,1737696658479,-1556.76,0.00021091,3]
[350215251,1737696658488,-500.0,0.00021091,3]
[350215252,1737696658497,-500.0,0.00021091,3]
[350215253,1737696658507,-500.0,0.00021091,3]
[350215254,1737696658516,-500.0,0.00021091,3]
[350215255,1737696658526,-500.0,0.00021091,3]
[350215256,1737696658536,-500.0,0.00021091,3]
[350215257,1737696658545,-500.0,0.00021091,3]
[350215258,1737696658555,-500.0,0.00021091,3]
[350215259,1737696658564,-500.0,0.00021091,3]
[350215260,1737696658574,-500.0,0.00021091,2]
[350215261,1737696658583,-500.0,0.00021091,3]
[350215262,1737696658592,-500.0,0.00021091,3]
[350215263,1737696658601,-644.83,0.00021091,3]
[350215264,1737696658611,-9109.92,0.00021091,3]
[350215265,1737696658620,-500.0,0.00021091,3]
[350215266,1737696658629,-500.0,0.00021091,3]
[350215267,1737696658639,-500.0,0.00021091,3]
[350215268,1737696658648,-500.0,0.00021091,3]
[350215269,1737696658657,-509.38,0.00021091,3]
[350215270,1737696658666,-500.0,0.00021091,3]
[350215271,1737696658675,-691.98,0.00021091,3]
[350215272,1737696658685,-500.0,0.00021091,3]
[350215273,1737696658694,-500.0,0.00021091,3]
[350215274,1737696658705,-9911.72,0.00021091,3]
[350215275,1737696658714,-2566.52,0.00021091,3]
[350215276,1737696658726,-500.0,0.00021091,3]
[350215277,1737696658734,-500.0,0.00021091,3]
[350215278,1737696658744,-205.65,0.00021091,3]
[350215279,1737696658753,-257.82144676,0.00021092,3]
[350215280,1737696658762,-359.34725326,0.00021092,3]
[350215281,1737696658771,-500.0,0.00021092,3]
[350215282,1737696658780,-500.0,0.00021092,3]
[350215283,1737696658790,-196.03949853,0.00021092,3]
[350215284,1737696658799,-4162.13,0.00021092,3]
[350215285,1737696658808,-500.0,0.00021092,3]
[350215286,1737696658817,-500.0,0.00021092,3]
[350215287,1737696658826,-500.0,0.00021092,3]
[350215288,1737696658836,-500.0,0.00021092,3]
[350215289,1737696658845,-500.0,0.00021093,3]
[350215290,1737696658854,-500.0,0.00021093,3]
[350215291,1737696658863,-500.0,0.00021093,3]
[350215292,1737696658872,-500.0,0.00021093,3]
[350215293,1737696658881,-500.0,0.00021093,3]
[350215294,1737696658890,-4190.94348189,0.00021129,2]
[350215295,1737696658899,-1200.03,0.00021132,3]
[350215296,1737696658908,-500.0,0.00021132,3]
[350215297,1737696658918,-1425.27,0.00021227,3]
[350215298,1737696658927,-500.0,0.00021227,3]
[350215299,1737696658936,-2140.23,0.00021227,3]
[350215300,1737696658945,-956.22,0.00021227,3]
[350215301,1737696658957,-562.0,0.00021227,3]
[350215302,1737696658967,-1228.47,0.00021227,3]
[350215303,1737696658977,-500.0,0.00021227,3]
[350215304,1737696658987,-560.96,0.00021227,3]
[350215305,1737696658996,-520.8,0.00021227,3]
[350215306,1737696659006,-759.03,0.00021227,3]
[350215307,1737696659015,-500.0,0.00021227,3]
[350215308,1737696659024,-500.0,0.00021227,3]
[350215309,1737696659034,-500.0,0.00021227,3]
[350215310,1737696659046,-1061.97,0.00021227,3]
[350215311,1737696659056,-1873.1,0.00021227,3]
[350215312,1737696659065,-500.0,0.00021227,3]
[350215313,1737696659075,-500.0,0.00021227,3]
[350215314,1737696659083,-800.88,0.00021227,3]
[350215315,1737696659092,-1876.67,0.00021227,3]
[350215316,1737696659102,-531.5,0.00021227,3]
[350215317,1737696659111,-500.0,0.00021228,3]
[350215318,1737696659120,-500.0,0.00021228,3]
[350215319,1737696659184,-1556.76,0.00021228,3]
[350215320,1737696659194,-500.0,0.00021228,3]
[350215321,1737696659204,-384.44,0.00021228,3]
[350215322,1737696659214,-546.86,0.00021228,3]
[350215323,1737696659223,-304.4,0.00021228,3]
[350215324,1737696659232,-482.9,0.00021228,3]
[350215325,1737696659242,-500.0,0.00021228,3]
[350215326,1737696659251,-500.0,0.00021228,3]
[350215327,1737696659260,-500.0,0.00021228,3]
[350215328,1737696659270,-500.0,0.00021228,3]
[350215329,1737696659280,-500.0,0.00021228,2]
[350215330,1737696659289,-500.0,0.00021228,3]
[350215331,1737696659299,-500.0,0.00021228,3]
[350215332,1737696659308,-644.83,0.00021228,3]
[350215333,1737696659317,-9109.92,0.00021228,3]
[350215334,1737696659328,-500.0,0.00021228,3]
[350215335,1737696659337,-500.0,0.00021228,3]
[350215336,1737696659347,-500.0,0.00021228,3]
[350215337,1737696659356,-284.48,0.00021228,3]